lending/lending_fUSD_20260317
["ID","MTS","AMOUNT","RATE_DAILY","PERIOD"]
[408511127,1773779432883,-57592.00325864,0.000148,2]
[408511128,1773779432896,-22347.0,0.000148,2]
[408511132,1773779438369,-17187.03977107,0.000148,2]
[408511133,1773779438381,-654.6,0.000148,2]
[408511134,1773779438422,-52692.23902088,0.000148,2]
[408511135,1773779438434,-3569.54609605,0.000148,2]
[408511143,1773779440786,-378.66,0.000148,2]
[408511144,1773779441008,-1810.00289802,0.000148,2]
[408511145,1773779441021,-1486.42542565,0.000148,2]
[408511146,1773779441034,-275.77490633,0.000148,2]
[408511147,1773779441046,-534.0,0.000148,2]
[408511153,1773779443431,-422.39513532,0.000148,2]
[408511191,1773779446663,-800.6768,0.000148,2]
[408511195,1773779505847,158.0,7.887e-05,2]
[408511201,1773779623535,-300.0,0.0001459,2]
[408511202,1773779623563,-204.04031347,0.00014591,2]
[408511203,1773779623590,-151.0,0.00014591,2]
[408511204,1773779623615,-151.0,0.00014591,2]
[408511205,1773779623640,-151.0,0.00014591,2]
[408511206,1773779623664,-151.0,0.00014591,2]
[408511207,1773779623690,-151.0,0.00014591,2]
[408511208,1773779623718,-151.0,0.00014591,2]
[408511209,1773779623746,-151.0,0.00014591,2]
[408511210,1773779623774,-150.0,0.00014599,2]
[408511211,1773779623796,-600.0,0.000146,2]
[408511212,1773779623820,-101972.0352,0.000146,2]
[408511213,1773779623842,-221.13645497,0.00014612,2]
[408511214,1773779623866,-500.0,0.00014699,2]
[408511215,1773779623891,-500.0,0.00014699,2]
[408511216,1773779623915,-500.0,0.00014699,2]
[408511217,1773779623938,-500.0,0.00014699,2]
[408511218,1773779623963,-500.0,0.00014699,2]
[408511219,1773779623987,-500.0,0.00014699,2]
[408511220,1773779624010,-500.0,0.00014699,2]
[408511221,1773779624035,-500.0,0.00014699,2]
[408511222,1773779624059,-500.0,0.00014699,2]
[408511223,1773779624084,-500.0,0.00014699,2]
[408511224,1773779624110,-500.0,0.00014699,2]
[408511225,1773779624134,-500.0,0.00014699,2]
[408511226,1773779624158,-500.0,0.00014699,2]
[408511227,1773779624181,-500.0,0.00014699,2]
[408511228,1773779624205,-500.0,0.00014699,2]
[408511229,1773779624229,-500.0,0.00014699,2]
[408511230,1773779624253,-500.0,0.00014699,2]
[408511231,1773779624276,-500.0,0.00014699,2]
[408511232,1773779624300,-500.0,0.00014699,2]
[408511233,1773779624325,-500.0,0.00014699,2]
[408511234,1773779624349,-500.0,0.00014699,2]
[408511235,1773779624374,-500.0,0.00014699,2]
[408511236,1773779624398,-500.0,0.00014699,2]
[408511237,1773779624422,-500.0,0.00014699,2]
[408511238,1773779624447,-500.0,0.00014699,2]
[408511239,1773779624472,-500.0,0.00014699,2]
[408511240,1773779624519,-500.0,0.00014699,2]
[408511241,1773779624547,-500.0,0.00014699,2]
[408511242,1773779624572,-500.0,0.00014699,2]
[408511243,1773779624596,-500.0,0.00014699,2]
[408511244,1773779624622,-500.0,0.00014699,2]
[408511245,1773779624648,-500.0,0.00014699,2]
[408511246,1773779624678,-500.0,0.00014699,2]
[408511247,1773779624706,-500.0,0.00014699,2]
[408511248,1773779624732,-500.0,0.00014699,2]
[408511249,1773779624760,-643.38479732,0.00014699,2]
[408511250,1773779624787,-500.0,0.00014699,2]
[408511251,1773779624813,-500.0,0.00014699,2]
[408511252,1773779624840,-500.0,0.00014699,2]
[408511253,1773779625019,-500.0,0.00014699,2]
[408511254,1773779625046,-500.0,0.00014699,2]
[408511255,1773779625071,-500.0,0.00014699,2]
[408511256,1773779625100,-500.0,0.00014699,2]
[408511257,1773779625124,-500.0,0.00014699,2]
[408511258,1773779625148,-500.0,0.00014699,2]
[408511259,1773779625172,-500.0,0.00014699,2]
[408511260,1773779625195,-500.0,0.00014699,2]
[408511261,1773779625218,-500.0,0.00014699,2]
[408511262,1773779625240,-400.0,0.00014699,2]
[408511263,1773779625264,-500.0,0.00014699,2]
[408511264,1773779625288,-1000.0,0.000147,2]
[408511265,1773779625308,-19054.7828,0.000147,2]
[408511266,1773779625331,-240397.62043424,0.000147,2]
[408511267,1773779802912,170.79,0.00030411,120]
[408511269,1773780631401,-150.0,0.00014599,2]
[408511270,1773780631411,-115.21997886,0.00014599,2]
[408511271,1773780631507,-184.78002114,0.00014599,2]
[408511272,1773780631517,-600.0,0.00014599,2]
[408511273,1773780631526,-24578.35805704,0.000146,2]
[408511287,1773780637521,-3216.5170958,0.000146,2]
[408511288,1773780637576,-435.60975813,0.000146,2]
[408511289,1773780637632,-453.00898369,0.000146,2]
[408511290,1773780637644,-46270.70340534,0.000146,2]
[408511291,1773780637653,-600.0,0.00014603,2]
[408511292,1773780637663,-7664.0,0.00014609,2]
[408511293,1773780637672,-2500.0,0.00014614,2]
[408511294,1773780637681,-151.0,0.00014691,2]
[408511295,1773780637691,-151.0,0.00014691,2]
[408511296,1773780637700,-151.0,0.00014691,2]
[408511297,1773780637711,-1000.0,0.000147,2]
[408511298,1773780637721,-174.9987233,0.000147,2]
[408511299,1773780637730,-59333.7795923,0.000147,2]
[408511300,1773780637740,-208.33923223,0.000147,2]
[408511301,1773780637749,-235.91765578,0.000147,2]
[408511302,1773780637758,-428.3915001,0.000147,2]
[408511303,1773780637767,-953.9129521,0.00014712,2]
[408511304,1773780637776,-85164.6442279,0.00014714,2]
[408511305,1773780637785,-1319.21296274,0.000148,2]
[408511306,1773780637795,-200.0,0.000148,2]
[408511308,1773780637804,-200.0,0.00014948,2]
[408511310,1773780637814,-2000.0,0.00014992,2]
[408511312,1773780637823,-250.0,0.00015,2]
[408511314,1773780637833,-313.07838905,0.00015028,2]
[408511316,1773780637842,-200.0,0.00015097,2]
[408511318,1773780637852,-154.02377296,0.00015155,2]
[408511320,1773780637862,-500.0,0.00015209,2]
[408511322,1773780637871,-200.0,0.00015248,2]
[408511324,1773780637880,-200.0,0.00015401,2]
[408511327,1773780637890,-214.16,0.00015418,2]
[408511329,1773780637899,-929.37600956,0.00015658,2]
[408511331,1773780637910,-150.0,0.00015767,2]
[408511333,1773780637919,-1500.0,0.00015767,2]
[408511335,1773780637928,-774.56,0.00015829,2]
[408511337,1773780637938,-163.54,0.00015833,2]
[408511339,1773780637947,-3240.0,0.00015844,2]
[408511341,1773780637956,-329.11,0.00015893,2]
[408511343,1773780637965,-4000.0,0.000159,2]
[408511346,1773780637975,-831.35,0.00015903,2]
[408511348,1773780637984,-420.0,0.00015984,2]
[408511350,1773780637994,-600.0,0.00016059,2]
[408511352,1773780638003,-600.0,0.00016059,2]
[408511354,1773780638016,-600.0,0.00016059,2]
[408511356,1773780638025,-195.0,0.00016059,2]
[408511358,1773780638034,-437.97700002,0.00016059,2]
[408511360,1773780638044,-3144.98623416,0.00016059,2]
[408511362,1773780638055,-1941.3797,0.00016082,2]
[408511364,1773780638064,-214.16,0.00016119,2]
[408511366,1773780638074,-154.02377296,0.00016238,2]
[408511368,1773780638084,-166.67,0.0001626,2]
[408511370,1773780638093,-352.77954664,0.00016284,2]
[408511372,1773780638103,-171.40613236,0.00016284,2]
[408511373,1773780638111,-359.81107371,0.00016284,2]
[408511375,1773780638121,-4000.0,0.00016297,2]
[408511378,1773780638130,-1538.0,0.000164,2]
[408511380,1773780638139,-174.9987233,0.00016405,2]
[408511382,1773780638148,-953.9129521,0.00016575,2]
[408511384,1773780638157,-1048.89484943,0.00016595,2]
[408511386,1773780638167,-2000.0,0.00016658,2]
[408511388,1773780638176,-329.11,0.00016669,2]
[408511390,1773780638185,-447.62440576,0.00016678,2]
[408511392,1773780638195,-174.767326,0.00016678,2]
[408511394,1773780638205,-500.0,0.00016678,2]
[408511396,1773780638214,-500.0,0.00016678,2]
[408511398,1773780638223,-604.33847973,0.00016678,2]
[408511400,1773780638232,-29161.58161238,0.00016679,2]
[408511403,1773780638254,-410.03200002,0.00016679,2]
[408511405,1773780638266,-640.93868497,0.00016679,2]
[408511428,1773780639670,-959.2056466,0.00016679,2]
[408511429,1773780639721,-2183.52560609,0.00016679,2]
[408511430,1773780639732,-1240.48575935,0.00016679,2]
[408511431,1773780639935,-1739.2125644,0.00016679,2]
[408511432,1773780639947,-497.813004,0.00016679,2]
[408511477,1773780642536,-1747.99627293,0.00016679,2]
[408511478,1773780642651,-420.93124511,0.00016679,2]
[408511479,1773780642664,-2122.85360847,0.00016679,2]
[408511480,1773780642710,-9893.33379576,0.00016679,2]
[408511481,1773780642722,-1374.04635367,0.00016679,2]
[408511482,1773780642733,-1016.49353724,0.00016679,2]
[408511501,1773780645375,-6515.54992489,0.00016679,2]
[408511502,1773780645387,-883.4800005,0.00016679,2]
[408511503,1773780645428,-5632.25459061,0.00016679,2]
[408511504,1773780645486,-1501.95717174,0.00016679,2]
[408511505,1773780645498,-8995.41348923,0.00016679,2]
[408511506,1773780645702,-434.11155521,0.00016679,2]
[408511508,1773780646306,-4074.12,0.00016679,2]
[408511509,1773780656765,154.36,7.883e-05,2]
[408511510,1773780657174,154.36,8.759e-05,2]
[408511511,1773780937537,500.0,0.0003287,120]
[408511514,1773781577720,-229.0,9.635e-05,2]
[408511515,1773781577749,-154.36,9.635e-05,2]
[408511516,1773781577784,-154.36,0.00010511,2]
[408511517,1773781577812,-199.03,0.00010599,2]
[408511518,1773781577841,-250.0,0.00010599,2]
[408511519,1773781577872,-154.36,0.00011387,2]
[408511520,1773781577902,-154.36,0.00012263,2]
[408511521,1773781577932,-154.36,0.00013139,2]
[408511522,1773781577960,-500.0,0.00013178,2]
[408511523,1773781577999,-2234.02,0.00013704,2]
[408511524,1773781578029,-154.36,0.00014015,2]
[408511525,1773781578057,-600.0,0.00014015,2]
[408511531,1773781831662,-450.0,0.00014015,7]
[408511532,1773781831673,-404.30213,0.00014207,2]
[408511533,1773781831685,-195.69787,0.00014207,2]
[408511534,1773781831694,-600.0,0.00014362,2]
[408511535,1773781831704,-600.0,0.00014362,2]
[408511536,1773781831714,-600.0,0.00014362,2]
[408511537,1773781831724,-77.14391342,0.00014398,2]
[408511538,1773781831736,-1122.85608658,0.00014398,2]
[408511539,1773781831757,-376.0,0.00014399,2]
[408511540,1773781831770,-15197.726,0.000144,2]
[408511541,1773781831780,-212.1281,0.000144,2]
[408511542,1773781831790,-73467.8214,0.000144,2]
[408511543,1773781831799,-151.0,0.00014497,2]
[408511544,1773781831810,-151.0,0.00014497,2]
[408511545,1773781831820,-150.0,0.00014499,2]
[408511546,1773781831829,-144689.2477,0.000145,2]
[408511547,1773781831840,-3315.64042436,0.00014512,2]
[408511548,1773781831850,-1000.0,0.00014612,2]
[408511549,1773781831860,-500.0,0.00014713,2]
[408511550,1773781831869,-1852.42,0.00014858,2]
[408511551,1773781831879,-3315.64042431,0.00014888,2]
[408511553,1773781831888,-154.36,0.00014891,2]
[408511555,1773781831898,-200.0,0.00014973,2]
[408511557,1773781831909,-250.0,0.00015,2]
[408511559,1773781831919,-154.02377296,0.00015155,2]
[408511561,1773781831929,-3315.64042431,0.00015265,2]
[408511563,1773781831940,-600.0,0.00015416,2]
[408511565,1773781831950,-255.0,0.0001563,2]
[408511567,1773781831960,-3315.64042431,0.00015641,2]
[408511569,1773781831970,-929.37600956,0.00015665,2]
[408511571,1773781831980,-160.0,0.00015665,2]
[408511573,1773781831991,-154.36,0.00015767,2]
[408511576,1773781832001,-3188.81,0.00015767,2]
[408511578,1773781832011,-196.61,0.00015821,2]
[408511580,1773781832022,-1680.0,0.00015838,2]
[408511582,1773781832031,-2500.0,0.000159,2]
[408511584,1773781832041,-664.61455226,0.00015984,2]
[408511586,1773781832051,-3187.72186442,0.00016,2]
[408511593,1773781832262,-3315.64042431,0.00016018,2]
[408511594,1773781832272,-1500.0,0.00016082,2]
[408511595,1773781832282,-700.0,0.00016082,2]
[408511596,1773781832292,-2400.0,0.00016082,2]
[408511597,1773781832302,-707.9312059,0.00016394,2]
[408511598,1773781832315,-2607.70921841,0.00016394,2]
[408511599,1773781832324,-3041.33,0.00016444,2]
[408511600,1773781832334,-2000.0,0.00016444,2]
[408511601,1773781832343,-49156.18368661,0.00016463,2]
[408511602,1773781832355,-90681.14020949,0.00016463,2]
[408511603,1773781832365,-88.04521612,0.0001647,2]
[408511604,1773781832376,-855.96014834,0.0001647,2]
[408511605,1773781832386,-608.66388625,0.0001647,2]
[408511606,1773781832396,-1538.0,0.00016497,2]
[408511607,1773781832409,-500.0,0.00016569,2]
[408511608,1773781832418,-500.0,0.00016569,2]
[408511609,1773781832429,-500.00416259,0.00016569,2]
[408511610,1773781832444,-500.0,0.00016569,2]
[408511611,1773781832454,-500.0,0.00016569,2]
[408511612,1773781832463,-500.0,0.00016569,2]
[408511613,1773781832474,-15538.1888085,0.0001657,2]
[408511614,1773781832484,-70440.93494372,0.0001657,2]
[408511615,1773781832496,-665.72995843,0.0001657,2]
[408511616,1773781832507,-1424.51542341,0.0001657,2]
[408511617,1773781832518,-575.75,0.0001657,2]
[408511622,1773781837669,-1000.0,0.000144,2]
[408511623,1773781837679,-1589.49791791,0.0001657,2]
[408511624,1773781837726,-6814.94453654,0.0001657,2]
[408511625,1773781837739,-3424.37572502,0.0001657,2]
[408511626,1773781837751,-2249.652817,0.0001657,2]
[408511627,1773781837764,-863.73012948,0.0001657,2]
[408511628,1773781837786,-1342.07784241,0.0001657,2]
[408511629,1773781837798,-422.58467,0.0001657,2]
[408511630,1773781837809,-1047.14930881,0.0001657,2]
[408511631,1773781837839,-2379.87464557,0.0001657,2]
[408511632,1773781837849,-699.9948932,0.0001657,2]
[408511633,1773781837859,-9416.44786357,0.0001657,2]
[408511634,1773781837871,-5131.43349836,0.0001657,2]
[408511635,1773781837896,-35211.80527107,0.0001657,2]
[408511636,1773781837906,-136732.0610968,0.0001657,2]
[408511637,1773781837915,-1907.8259042,0.0001657,2]
[408511638,1773781837926,-155.904935,0.0001657,2]
[408511639,1773781837936,-349.9974466,0.0001657,2]
[408511640,1773781837947,-151.0,0.0001657,2]
[408511642,1773781837957,-151.0,0.0001657,2]
[408511643,1773781837967,-151.0,0.0001657,2]
[408511644,1773781837977,-153.435431,0.0001657,2]
[408511645,1773781837987,-151.0,0.0001657,2]
[408511646,1773781837997,-151.0,0.0001657,2]
[408511647,1773781838007,-151.0,0.0001657,2]
[408511649,1773781838017,-151.0,0.0001657,2]
[408511651,1773781838026,-151.0,0.0001657,2]
[408511652,1773781838037,-151.0,0.0001657,2]
[408511653,1773781838046,-500.0,0.00016573,2]
[408511654,1773781838056,-607.54471744,0.00016573,2]
[408511656,1773781838066,-575.024674,0.00016573,2]
[408511657,1773781838076,-500.0,0.00016573,2]
[408511659,1773781838086,-501.28770509,0.00016573,2]
[408511660,1773781838095,-500.0,0.00016573,2]
[408511661,1773781838105,-500.0,0.00016573,2]
[408511662,1773781838116,-500.0,0.00016573,2]
[408511663,1773781838127,-500.0,0.00016573,2]
[408511664,1773781838137,-17356.85,0.00016576,2]
[408511665,1773781838147,-944.00536445,0.00016629,2]
[408511666,1773781838157,-154.02377296,0.00016671,2]
[408511667,1773781838167,-608.66388622,0.00016674,2]
[408511668,1773781838178,-151.0,0.00016679,2]
[408511669,1773781838187,-151.0,0.00016679,2]
[408511670,1773781838196,-168.85346592,0.00016679,2]
[408511671,1773781838206,-4000.0,0.00016695,2]
[408511672,1773781838215,-428.3915001,0.00016716,2]
[408511673,1773781838225,-3315.64042431,0.00016771,2]
[408511674,1773781838235,-944.00536445,0.00016788,2]
[408511675,1773781838249,-214.16,0.00016819,2]
[408511676,1773781838259,-500.0,0.00016827,2]
[408511677,1773781838370,-500.0,0.00016827,2]
[408511678,1773781838397,-500.0,0.00016827,2]
[408511679,1773781838410,-500.0,0.00016827,2]
[408511680,1773781838419,-193.54220131,0.00016827,2]
[408511681,1773781838429,-239.0,0.00016848,2]
[408511682,1773781838439,-608.66388622,0.00016879,2]
[408511683,1773781838448,-300.0,0.000169,6]
[408511684,1773781838458,-5000.0,0.000169,2]
[408511685,1773781838468,-944.00536445,0.00016947,2]
[408511686,1773781838478,-168.0,0.00016991,2]
[408511687,1773781838489,-14620.53018745,0.00017,2]
[408511688,1773781838499,-50520.84842396,0.00017,2]
[408511689,1773781838511,-705.67590263,0.00017,2]
[408511690,1773781838523,-1548.78893979,0.00017,2]
[408511693,1773781840059,-151.0,0.0001657,2]
[408511694,1773781840072,-151.0,0.0001657,2]
[408511695,1773781840081,-63.60952667,0.0001657,2]
[408511696,1773781840332,-87.39047333,0.0001657,2]
[408511697,1773781840342,-2441.91474921,0.00017,2]
[408511698,1773781840354,-2125.52836104,0.00017,2]
[408511699,1773781840365,-831.00500063,0.00017,2]
[408511700,1773781840389,-897.11678621,0.00017,2]
[408511716,1773781842853,-151.0,0.0001657,2]
[408511717,1773781842862,-167.018921,0.0001657,2]
[408511718,1773781842872,-248.191479,0.00017,2]
[408511734,1773782133856,172.0,9e-07,2]
[408511745,1773783031908,-22025.6498,0.000142,2]
[408511746,1773783031918,-166.66,0.00014224,2]
[408511747,1773783031929,-720.0,0.00014299,2]
[408511748,1773783031939,-150.0,0.00014299,2]
[408511749,1773783031948,-24673.278,0.000143,2]
[408511750,1773783031958,-1000.0,0.000143,2]
[408511751,1773783031968,-32966.233,0.000143,2]
[408511752,1773783031979,-2500.0,0.000143,2]
[408511753,1773783031988,-200.0,0.00014391,2]
[408511754,1773783031998,-1759.22292106,0.00014423,2]
[408511755,1773783032008,-166.66,0.00014523,2]
[408511756,1773783032018,-992.10892523,0.0001476,2]
[408511757,1773783032027,-1759.22292097,0.00014809,2]
[408511758,1773783032037,-166.66,0.00014823,2]
[408511759,1773783032047,-413.06,0.00014973,2]
[408511760,1773783032057,-161.7,0.00014973,2]
[408511761,1773783032066,-1500.0,0.00015028,2]
[408511762,1773783032076,-2000.0,0.0001505,2]
[408511763,1773783032086,-264.76165845,0.00015104,2]
[408511764,1773783032095,-166.66,0.00015122,2]
[408511765,1773783032105,-150.0,0.00015172,2]
[408511766,1773783032114,-1000.0,0.00015185,2]
[408511767,1773783032124,-154.02377296,0.00015194,2]
[408511768,1773783032134,-1759.22292097,0.00015196,2]
[408511769,1773783032144,-200.0,0.0001523,2]
[408511770,1773783032155,-500.0,0.00015318,2]
[408511771,1773783032165,-166.66,0.00015422,2]
[408511773,1773783032175,-4000.0,0.00015507,2]
[408511775,1773783032185,-1759.22292097,0.00015582,2]
[408511777,1773783032195,-929.37600956,0.00015691,2]
[408511779,1773783032208,-160.0,0.00015691,2]
[408511780,1773783032218,-500.0,0.00015699,2]
[408511781,1773783032228,-413.06,0.00015721,2]
[408511782,1773783032238,-166.66,0.00015721,2]
[408511783,1773783032248,-498.81,0.00015882,2]
[408511784,1773783032258,-4000.0,0.00015895,2]
[408511785,1773783032268,-1759.22292097,0.00015968,2]
[408511786,1773783032279,-1400.0,0.00016082,2]
[408511787,1773783032288,-700.0,0.00016082,2]
[408511788,1773783032298,-2200.0,0.00016082,2]
[408511789,1773783032308,-4000.0,0.00016282,2]
[408511790,1773783032318,-1759.22292097,0.00016355,2]
[408511791,1773783032329,-500.0,0.00016469,2]
[408511792,1773783032340,-500.0,0.00016469,2]
[408511793,1773783032351,-413.06,0.0001647,2]
[408511794,1773783032362,-2019.21838584,0.00016595,2]
[408511795,1773783032372,-4000.0,0.0001667,2]
[408511796,1773783032383,-1759.22292097,0.00016741,2]
[408511797,1773783032392,-955.79418665,0.00016781,2]
[408511798,1773783032402,-2400.0,0.00016807,2]
[408511799,1773783032416,-708.84902,0.0001683,2]
[408511800,1773783032426,-708.84902,0.0001683,2]
[408511801,1773783032436,-1501.9571719,0.00016881,2]
[408511802,1773783032445,-4004.5199418,0.00016881,2]
[408511803,1773783032455,-19991.1078589,0.00016881,2]
[408511804,1773783032466,-10668.624372,0.00016881,2]
[408511805,1773783032476,-2998.51099341,0.00016899,2]
[408511806,1773783032487,-2000.0,0.00016931,2]
[408511807,1773783032497,-955.79418663,0.00016941,2]
[408511808,1773783032508,-11956.59309043,0.00016952,2]
[408511809,1773783032518,-502.81664943,0.00016973,2]
[408511810,1773783032530,-500.0,0.00016973,2]
[408511811,1773783032540,-501.74189694,0.00016973,2]
[408511812,1773783032551,-500.0,0.00016973,2]
[408511813,1773783032562,-502.06348181,0.00016973,2]
[408511814,1773783032572,-500.0,0.00016973,2]
[408511815,1773783032581,-500.0,0.00016973,2]
[408511816,1773783032595,-503.67175726,0.00016973,2]
[408511817,1773783032604,-250.0,0.00016986,2]
[408511818,1773783032614,-197.46,0.0001699,2]
[408511819,1773783032624,-197.46,0.0001699,2]
[408511820,1773783032635,-151.0,0.00016997,2]
[408511821,1773783032645,-151.0,0.00016997,2]
[408511822,1773783032655,-1068.37,0.00016999,2]
[408511823,1773783032665,-500.0,0.00016999,2]
[408511824,1773783032675,-500.0,0.00016999,2]
[408511825,1773783032685,-500.0,0.00016999,2]
[408511826,1773783032695,-500.0,0.00016999,2]
[408511827,1773783032705,-500.0,0.00016999,2]
[408511828,1773783032716,-500.0,0.00016999,2]
[408511829,1773783032726,-500.0,0.00016999,2]
[408511830,1773783032736,-500.0,0.00016999,2]
[408511831,1773783032750,-500.0,0.00016999,2]
[408511832,1773783032761,-500.0,0.00016999,2]
[408511833,1773783032770,-500.0,0.00016999,2]
[408511834,1773783032781,-500.0,0.00016999,2]
[408511835,1773783032793,-314.16371741,0.00016999,2]
[408511836,1773783032803,-500.0,0.00016999,2]
[408511837,1773783032814,-500.0,0.00016999,2]
[408511838,1773783032824,-500.0,0.00016999,2]
[408511839,1773783032835,-500.0,0.00016999,2]
[408511840,1773783032844,-500.0,0.00016999,2]
[408511841,1773783032854,-500.0,0.00016999,2]
[408511842,1773783032864,-500.0,0.00016999,2]
[408511843,1773783032874,-500.0,0.00016999,2]
[408511844,1773783032884,-500.0,0.00016999,2]
[408511845,1773783032894,-500.0,0.00016999,2]
[408511846,1773783032904,-500.0,0.00016999,2]
[408511847,1773783032914,-500.0,0.00016999,2]
[408511848,1773783032925,-500.0,0.00016999,2]
[408511849,1773783032935,-4272.88809168,0.00017,2]
[408511850,1773783033422,-41031.06220467,0.00017,2]
[408511851,1773783033436,-1085.39999998,0.00017,2]
[408511856,1773783037853,-347.94216551,0.00016999,2]
[408511857,1773783037865,-152.05783449,0.00016999,2]
[408511858,1773783037875,-500.0,0.00016999,2]
[408511859,1773783037884,-500.0,0.00016999,2]
[408511860,1773783037894,-500.0,0.00016999,2]
[408511861,1773783037904,-500.0,0.00016999,2]
[408511862,1773783037913,-500.0,0.00016999,2]
[408511863,1773783037923,-266.50216551,0.00016999,2]
[408511864,1773783037941,-233.49783449,0.00016999,2]
[408511865,1773783037951,-500.0,0.00016999,2]
[408511866,1773783037960,-49.59483337,0.00016999,2]
[408511867,1773783038024,-450.40516663,0.00016999,2]
[408511868,1773783038035,-500.0,0.00016999,2]
[408511869,1773783038045,-500.0,0.00016999,2]
[408511870,1773783038055,-500.0,0.00016999,2]
[408511871,1773783038065,-500.0,0.00016999,2]
[408511872,1773783038075,-500.0,0.00016999,2]
[408511873,1773783038085,-500.0,0.00016999,2]
[408511874,1773783038095,-500.0,0.00016999,2]
[408511875,1773783038105,-500.0,0.00016999,2]
[408511876,1773783038115,-500.0,0.00016999,2]
[408511877,1773783038127,-143332.66349323,0.00017,2]
[408511878,1773783038137,-300.0,0.00017,2]
[408511879,1773783038146,-200.0,0.00017,2]
[408511881,1773783038157,-200.0,0.00017,2]
[408511883,1773783038167,-474.12914604,0.00017,2]
[408511885,1773783038177,-151.0,0.00017,2]
[408511887,1773783038186,-200.0,0.00017,2]
[408511890,1773783038196,-151.0,0.00017,2]
[408511892,1773783038206,-708.84902,0.00017,2]
[408511894,1773783038215,-708.84903,0.00017,2]
[408511896,1773783038225,-708.84902,0.00017,2]
[408511898,1773783038235,-708.84902,0.00017,2]
[408511900,1773783038245,-151.0,0.00017,2]
[408511902,1773783038255,-151.0,0.00017,2]
[408511904,1773783038265,-200.0,0.00017,2]
[408511906,1773783038275,-151.0,0.00017,2]
[408511908,1773783038285,-151.0,0.00017,2]
[408511910,1773783038295,-2998.51099336,0.0001701,2]
[408511912,1773783038305,-161.0,0.0001704,2]
[408511914,1773783038314,-835.0,0.0001704,2]
[408511916,1773783038324,-4000.0,0.00017058,2]
[408511918,1773783038334,-161.475,0.00017098,2]
[408511920,1773783038343,-2362.009,0.00017098,2]
[408511922,1773783038353,-5392.57231711,0.000171,2]
[408511924,1773783038362,-955.79418663,0.00017101,2]
[408511926,1773783038372,-2998.51099336,0.00017121,2]
[408511928,1773783038382,-1759.22292097,0.00017127,2]
[408511930,1773783038392,-160.0,0.00017137,2]
[408511932,1773783038401,-200.0,0.0001717,2]
[408511934,1773783038412,-200.0,0.0001717,2]
[408511937,1773783038421,-200.0,0.0001717,2]
[408511939,1773783038431,-200.0,0.0001717,2]
[408511941,1773783038440,-533.0,0.000172,2]
[408511943,1773783038450,-1600.0,0.000172,6]
[408511944,1773783038460,-1600.0,0.000172,6]
[408511947,1773783038470,-300.0,0.000172,6]
[408511949,1773783038480,-200.0,0.000172,6]
[408511951,1773783038491,-413.06,0.00017218,2]
[408511953,1773783038501,-500.0,0.00017232,2]
[408511955,1773783038510,-2998.51099336,0.00017233,2]
[408511957,1773783038520,-244.312056,0.00017248,7]
[408511959,1773783038530,-955.79418663,0.00017261,2]
[408511961,1773783038540,-1068.37,0.00017273,2]
[408511963,1773783038551,-197.46,0.0001729,2]
[408511965,1773783038561,-3300.0,0.000173,6]
[408511967,1773783038571,-3200.0,0.000173,6]
[408511970,1773783038581,-700.0,0.000173,6]
[408511971,1773783038591,-500.0,0.000173,6]
[408511974,1773783038601,-600.0,0.00017308,2]
[408511976,1773783038611,-168.0,0.00017331,2]